fUST/lending_fUST_20260406
["ID","MTS","AMOUNT","RATE_DAILY","PERIOD"]
[419865672,1775442646380,-275.425,0.0002364,4]
[419865673,1775442646390,-188.13483808,0.0002364,4]
[419865674,1775442646400,-1484.7858631,0.0002364,2]
[419865675,1775442646409,-2354.0317513,0.0002364,2]
[419865676,1775442646418,-167.13375572,0.00023813,2]
[419865677,1775442646428,-535.724377,0.00023817,2]
[419865678,1775442646437,-153.68177881,0.00023998,7]
[419865679,1775442646446,-155.16342398,0.00024,2]
[419865680,1775442646455,-173.19580158,0.00024049,14]
[419865681,1775442646465,-153.68177881,0.00024223,7]
[419865682,1775442646474,-55622.94316544,0.00024256,2]
[419865683,1775442646483,-500.0,0.00024355,2]
[419865684,1775442646492,-231.38347595,0.00024355,2]
[419865685,1775442646501,-500.0,0.00024355,2]
[419865686,1775442646511,-397.11083076,0.00024355,2]
[419865687,1775442646520,-500.0,0.00024355,2]
[419865688,1775442646529,-500.0,0.00024355,2]
[419865689,1775442646539,-295.96201596,0.00024355,2]
[419865690,1775442646548,-231251.72108048,0.00024356,2]
[419865691,1775442646557,-200.0,0.00024356,2]
[419865692,1775442646567,-173.70708,0.00024356,2]
[419865693,1775442646577,-907.633594,0.00024356,2]
[419865694,1775442646586,-907.633594,0.00024356,2]
[419865695,1775442646595,-907.633594,0.00024356,2]
[419865696,1775442646604,-907.633594,0.00024356,2]
[419865697,1775442646613,-500.0,0.00024629,2]
[419865698,1775442646622,-10000.0,0.000248,4]
[419865699,1775442646631,-1031.88603673,0.000248,2]
[419865700,1775442646640,-153.68177881,0.0002482,7]
[419865701,1775442646649,-153.68177881,0.0002482,7]
[419865702,1775442646658,-535.724377,0.0002482,2]
[419865703,1775442646667,-196.3059407,0.00024851,2]
[419865704,1775442646677,-800.0,0.00024896,2]
[419865705,1775442646686,-36432.5095446,0.000249,2]
[419865706,1775442646695,-1199.45582964,0.000249,4]
[419865707,1775442646704,-151.0,0.000249,2]
[419865708,1775442646713,-151.0,0.000249,2]
[419865709,1775442646722,-151.0,0.000249,2]
[419865710,1775442646732,-151.0,0.000249,2]
[419865711,1775442646741,-151.0,0.000249,2]
[419865712,1775442646751,-151.0,0.000249,2]
[419865713,1775442646760,-151.0,0.000249,2]
[419865714,1775442646769,-151.0,0.000249,2]
[419865715,1775442646779,-151.0,0.000249,2]
[419865716,1775442646788,-430.156259,0.000249,2]
[419865717,1775442646797,-430.156259,0.000249,2]
[419865718,1775442646806,-430.156259,0.000249,2]
[419865719,1775442646816,-430.156259,0.000249,2]
[419865720,1775442646827,-907.633594,0.000249,2]
[419865721,1775442646836,-907.633594,0.000249,2]
[419865722,1775442646846,-907.633594,0.000249,2]
[419865723,1775442646855,-907.633594,0.000249,2]
[419865724,1775442646866,-500.0,0.00024903,2]
[419865725,1775442646876,-500.73649789,0.00024973,2]
[419865726,1775442646885,-150.25527583,0.00024973,2]
[419865727,1775442646895,-151.0,0.00024973,2]
[419865728,1775442646904,-151.0,0.00024973,2]
[419865729,1775442646914,-151.0,0.00024973,2]
[419865730,1775442646924,-151.881913,0.00024973,2]
[419865731,1775442646933,-6858.5531331,0.0002498,2]
[419865732,1775442646945,-2249.57425305,0.0002498,2]
[419865733,1775442646954,-301.728898,0.0002499,2]
[419865734,1775442646963,-151.0,0.0002499,2]
[419865735,1775442646973,-151.0,0.0002499,2]
[419865736,1775442646983,-151.0,0.0002499,2]
[419865737,1775442646992,-306.640377,0.0002499,2]
[419865738,1775442647004,-306.640377,0.0002499,2]
[419865739,1775442647014,-306.640377,0.0002499,2]
[419865740,1775442647024,-306.640377,0.0002499,2]
[419865741,1775442647034,-151.0,0.0002499,2]
[419865742,1775442647044,-18216.2547723,0.0002499,2]
[419865743,1775442647054,-500.52797686,0.00025,2]
[419865744,1775442647064,-159.0,0.00025,7]
[419865745,1775442647074,-31874.65307112,0.00025,2]
[419865746,1775442647087,-77558.702409,0.00025,2]
[419865747,1775442647098,-151.0,0.00025,2]
[419865748,1775442647108,-152.304647,0.00025,2]
[419865749,1775442647117,-152.52428,0.00025,2]
[419865750,1775442647126,-200.0,0.00025,2]
[419865751,1775442647135,-151.0,0.00025,2]
[419865752,1775442647145,-151.0,0.00025,2]
[419865753,1775442647156,-151.0,0.00025,2]
[419865754,1775442647165,-151.0,0.00025,2]
[419865755,1775442647175,-151.0,0.00025,2]
[419865756,1775442647184,-151.0,0.00025,2]
[419865757,1775442647193,-151.0,0.00025,2]
[419865758,1775442647201,-159.064182,0.00025,2]
[419865759,1775442647211,-306.640377,0.00025,2]
[419865760,1775442647220,-306.640377,0.00025,2]
[419865761,1775442647230,-306.640377,0.00025,2]
[419865762,1775442647240,-306.640377,0.00025,2]
[419865763,1775442647254,-151.959432,0.00025,2]
[419865764,1775442647264,-180.350531,0.00025,2]
[419865765,1775442647274,-180.350531,0.00025,2]
[419865766,1775442647283,-180.350531,0.00025,2]
[419865767,1775442647293,-180.350531,0.00025,2]
[419865768,1775442647302,-751.285352,0.00025,2]
[419865769,1775442647322,-751.285352,0.00025,2]
[419865770,1775442647332,-751.285352,0.00025,2]
[419865771,1775442647343,-751.285352,0.00025,2]
[419865772,1775442647353,-151.0,0.00025,2]
[419865773,1775442647364,-151.0,0.00025,2]
[419865774,1775442647373,-151.28285,0.00025,2]
[419865775,1775442647384,-151.0,0.00025,2]
[419865776,1775442647394,-151.0,0.00025,2]
[419865777,1775442647404,-151.0,0.00025,2]
[419865778,1775442647414,-151.673591,0.00025,2]
[419865779,1775442647423,-151.0,0.00025,2]
[419865780,1775442647433,-151.0,0.00025,2]
[419865781,1775442647443,-430.156259,0.00025,2]
[419865782,1775442647452,-430.156259,0.00025,2]
[419865783,1775442647461,-430.156259,0.00025,2]
[419865784,1775442647471,-430.156259,0.00025,2]
[419865785,1775442647480,-907.633594,0.00025,2]
[419865786,1775442647490,-907.633594,0.00025,2]
[419865787,1775442647499,-907.633594,0.00025,2]
[419865788,1775442647509,-907.633594,0.00025,2]
[419865789,1775442647518,-509.35626948,0.00025177,2]
[419865790,1775442647528,-233.0,0.00025178,15]
[419865791,1775442647538,-3446.94499537,0.00025344,2]
[419865792,1775442647547,-658.18497385,0.00025344,3]
[419865793,1775442647556,-277.282465,0.00025382,14]
[419865794,1775442647566,-468.655047,0.00025382,14]
[419865795,1775442647575,-419.47649,0.00025382,14]
[419865796,1775442647585,-414.946232,0.00025382,14]
[419865797,1775442647595,-250.0,0.000254,2]
[419865798,1775442647604,-183.64355937,0.000254,2]
[419865799,1775442647727,-66.35644063,0.000254,2]
[419865800,1775442647737,-250.0,0.000254,2]
[419865801,1775442647859,-250.0,0.000254,2]
[419865802,1775442647870,-250.0,0.000254,2]
[419865803,1775442647880,-250.0,0.000254,2]
[419865804,1775442647889,-250.0,0.000254,2]
[419865805,1775442647899,-250.0,0.000254,2]
[419865806,1775442647908,-246.7,0.000254,2]
[419865807,1775442647917,-9108.12738615,0.00025424,2]
[419865808,1775442647927,-151.0,0.00025434,2]
[419865809,1775442647936,-20.49462131,0.00025434,2]
[419865810,1775442703437,807.59267417,7.871e-05,2]
[419865812,1775443409018,164.0,0.00032876,120]
[419865813,1775443617780,500.0,0.0003287,120]
[419865814,1775443627113,500.0,0.0003287,120]
[419865817,1775443832115,-300.0,0.0001,2]
[419865818,1775443832124,-471.8327237,0.00011,2]
[419865819,1775443832133,-1000.0,0.00013699,2]
[419865820,1775443832143,-1200.0,0.00019175,2]
[419865821,1775443832152,-300.0,0.00019176,2]
[419865822,1775443832161,-300.0,0.00019176,2]
[419865823,1775443832170,-300.0,0.00019176,2]
[419865824,1775443832179,-1000.0,0.00019178,2]
[419865825,1775443832188,-1000.0,0.00019178,2]
[419865826,1775443832197,-1000.0,0.00019178,7]
[419865827,1775443832207,-1000.0,0.00019178,7]
[419865828,1775443832216,-1000.0,0.00019178,7]
[419865829,1775443832226,-1638.9963971,0.00019754,2]
[419865830,1775443832236,-159.845144,0.00019816,2]
[419865831,1775443832245,-1211.0,0.00020998,2]
[419865832,1775443832255,-160.0,0.00021584,5]
[419865833,1775443832264,-156.0,0.00021899,2]
[419865834,1775443832273,-253.0,0.00022,2]
[419865835,1775443832282,-626.71292092,0.00022153,2]
[419865836,1775443832291,-2230.315306,0.00022153,2]
[419865837,1775443832300,-2312.83697232,0.00022701,2]
[419865838,1775443832311,-1409.84,0.00022842,2]
[419865839,1775443832320,-644.0,0.00022842,2]
[419865840,1775443832329,-2210.563,0.00022842,2]
[419865841,1775443832339,-270.879,0.00022842,2]
[419865842,1775443832348,-453.697,0.00022842,2]
[419865843,1775443832357,-150.579,0.00022842,2]
[419865844,1775443832366,-253.0,0.00023,2]
[419865845,1775443832376,-270.83333333,0.00023,2]
[419865846,1775443832385,-710.63300178,0.00023249,2]
[419865847,1775443832394,-6783.6859977,0.0002377,2]
[419865848,1775443832403,-2900.21546063,0.0002377,2]
[419865913,1775443843490,-256.2,0.0002377,2]
[419865958,1775443846273,-1311.60361247,0.0002377,2]
[419865959,1775443846487,-4310.17736062,0.0002377,2]
[419865970,1775444115304,5160.0,0.00032876,120]
[419866032,1775445038417,-340.43937616,0.0001,2]
[419866033,1775445038427,-6334.03824035,0.000104,2]
[419866034,1775445038453,-1000.0,0.00013699,2]
[419866035,1775445038465,-300.0,0.00015512,49]
[419866036,1775445038476,-160.0,0.00021584,5]
[419866037,1775445038487,-1006.17,0.000218,2]
[419866038,1775445038496,-15000.0,0.000219,2]
[419866039,1775445038507,-1000.0,0.0002198,30]
[419866040,1775445038517,-227.0,0.00022,2]
[419866041,1775445038527,-165.9214266,0.0002241,2]
[419866042,1775445038538,-1200.0,0.00022673,2]
[419866043,1775445038548,-300.0,0.00022674,2]
[419866044,1775445038557,-300.0,0.00022674,2]
[419866045,1775445038567,-300.0,0.00022674,2]
[419866046,1775445038578,-5644.6521542,0.00022676,2]
[419866047,1775445038588,-500.0,0.00022741,2]
[419866048,1775445038597,-150.194,0.00022842,2]
[419866049,1775445038608,-151.659,0.00022842,2]
[419866050,1775445038618,-644.0,0.00022842,2]
[419866051,1775445038628,-2204.0,0.00022842,2]
[419866052,1775445038638,-440.0,0.00022842,2]
[419866053,1775445038647,-184.0,0.00022842,2]
[419866054,1775445038657,-500.0,0.00022981,2]
[419866055,1775445038668,-227.0,0.00023,2]
[419866056,1775445038677,-5935.72524797,0.00023459,2]
[419866058,1775445038687,-270.83333333,0.00023497,2]
[419866059,1775445038697,-2613.12491086,0.00023513,17]
[419866060,1775445038707,-307.275711,0.00023542,2]
[419866062,1775445038717,-1181.1086645,0.00023542,2]
[419866063,1775445038727,-9304.3564302,0.00023553,2]
[419866065,1775445038738,-500.0,0.00023673,2]
[419866066,1775445038748,-790.0,0.000238,2]
[419866068,1775445038758,-5133.5431841,0.0002387,2]
[419866069,1775445038767,-324.7964574,0.00023985,2]
[419866071,1775445038777,-220.34,0.00024,5]
[419866073,1775445038786,-227.0,0.00024,2]
[419866075,1775445038796,-500.0,0.00024073,2]
[419866077,1775445038805,-500.0,0.00024073,2]
[419866079,1775445038815,-500.0,0.00024073,2]
[419866081,1775445038825,-357.149584,0.00024124,2]
[419866083,1775445038834,-1000.0,0.00024221,2]
[419866085,1775445038843,-30549.0098514,0.0002435,2]
[419866087,1775445038857,-17358.98235561,0.0002435,2]
[419866089,1775445038868,-872.06365179,0.0002435,2]
[419866092,1775445038881,-3675.30144317,0.0002435,2]
[419866094,1775445038892,-2866.49295455,0.0002435,2]
[419866134,1775445041201,-396.27900709,0.0002435,2]
[419866135,1775445041321,-1202.22657072,0.0002435,2]
[419866136,1775445041333,-1175.66510949,0.0002435,2]
[419866176,1775445046486,-7637.56141585,0.0002435,2]
[419866179,1775445046541,-336.33341679,0.0002435,2]
[419866180,1775445046552,-414.48375,0.0002435,2]
[419866181,1775445046563,-8378.62888832,0.0002435,2]
[419866182,1775445046575,-8758.64294932,0.0002435,2]
[419866184,1775445330719,500.0,0.0003287,120]
[419866185,1775445408682,3002.147,0.00032877,120]
[419866186,1775445470254,547.38296125,0.00023541,120]
[419866187,1775445534319,218.0,0.0003,120]
[419866189,1775445638840,8220.94,0.00032877,120]
[419866190,1775445970995,1294.0,9.003e-05,2]
[419866224,1775446232420,-1200.0,9.8e-05,2]
[419866225,1775446232430,-660.80974672,9.801e-05,2]
[419866227,1775446232441,-2544.05265092,9.801e-05,2]
[419866231,1775446232476,-467.52642622,9.801e-05,2]
[419866239,1775446238631,-1327.61117614,9.801e-05,2]
[419866240,1775446238641,-557.0,9.801e-05,2]
[419866241,1775446238650,-842.67875819,0.0001,2]
[419866242,1775446238660,-1000.0,0.00013699,2]
[419866243,1775446238669,-2170.19981201,0.00020363,2]
[419866244,1775446238679,-4878.06662745,0.00020363,2]
[419866245,1775446238689,-1754.11009842,0.00020363,2]
[419866246,1775446238698,-193.0,0.00022,2]
[419866247,1775446238708,-2196.45,0.00022,2]
[419866248,1775446238718,-1507.48396713,0.0002276,2]
[419866249,1775446238727,-1507.26,0.0002276,2]
[419866250,1775446238736,-5227.46313423,0.00022776,2]
[419866251,1775446238745,-1507.26,0.00022876,2]
[419866252,1775446238754,-1507.26,0.00022876,2]
[419866253,1775446238764,-1507.26,0.00022876,2]
[419866254,1775446238773,-1507.26,0.00022876,2]
[419866255,1775446238782,-1507.26,0.00022876,2]
[419866256,1775446238791,-62.61024831,0.00022876,2]
[419866257,1775446238803,-1444.64975169,0.00022876,2]
[419866258,1775446238813,-1507.26,0.00022876,2]
[419866259,1775446238822,-188.0684329,0.00022876,2]
[419866260,1775446238833,-1319.1915671,0.00022876,2]
[419866261,1775446238842,-799.47547965,0.00022876,2]
[419866271,1775446243276,-239.23987437,9.703e-05,2]
[419866272,1775446243289,-4760.76012563,9.703e-05,2]
[419866282,1775446246939,-707.78452035,0.00022876,2]
[419866283,1775446246949,-1507.26,0.00022876,2]
[419866284,1775446246959,-193.0,0.00023,2]
[419866285,1775446246968,-26.94735386,0.00023,2]
[419866286,1775446303621,4964.4,0.0003287,120]
[419866288,1775447432582,-300.0,0.00012999,2]
[419866289,1775447432592,-300.0,0.00012999,2]
[419866290,1775447432602,-300.0,0.00012999,2]
[419866291,1775447432612,-1200.0,0.00012999,2]
[419866292,1775447432622,-3421.3879286,0.00013,2]
[419866293,1775447432634,-396.70195802,0.00013,2]
[419866358,1775447447031,-8886.98327216,0.00013,2]
[419866359,1775447652366,336.0,0.00032876,120]
[419866360,1775448061777,-195.96690379,0.00010959,2]
[419866361,1775448061997,-512.79322184,0.00010959,2]
[419866362,1775448090899,-195.96690379,0.00010959,2]
[419866370,1775448631794,-198.16663372,0.0001,2]
[419866371,1775448631804,-5000.0,0.00010319,2]
[419866372,1775448631813,-282.71763686,0.000104,2]
[419866373,1775448631823,-300.0,0.00010422,2]
[419866374,1775448631832,-1200.0,0.00010422,2]
[419866375,1775448631841,-5000.0,0.00010423,2]
[419866376,1775448631850,-43.27297058,0.00010959,2]
[419866378,1775448631859,-500.0,0.00010959,2]
[419866380,1775448631868,-280.02808388,0.00011176,2]
[419866406,1775448638183,-5000.0,9.9e-05,2]
[419866407,1775448638192,-2088.67177035,0.00011176,2]
[419866419,1775448640840,-1109.82875241,0.00011176,2]
[419866452,1775448646105,-63.875889,0.00011176,2]
[419866454,1775448646115,-236.124111,0.00011176,2]
[419866457,1775448646126,-63.875889,0.00011176,2]
[419866459,1775448646135,-300.0,0.00011176,2]
[419866460,1775448646144,-300.0,0.00011176,2]
[419866461,1775448646153,-300.0,0.00011176,2]
[419866462,1775448646163,-300.0,0.00011176,2]
[419866463,1775448646172,-300.0,0.00011176,2]
[419866464,1775448646181,-300.0,0.00011176,2]
[419866465,1775448646191,-300.0,0.00011176,2]
[419866466,1775448646200,-300.0,0.00011176,2]
[419866467,1775448646209,-300.0,0.00011176,2]
[419866468,1775448646218,-300.0,0.00011176,2]
[419866469,1775448646227,-300.0,0.00011176,2]
[419866470,1775448646236,-300.0,0.00011176,2]
[419866471,1775448646245,-300.0,0.00011176,2]
[419866472,1775448646254,-300.0,0.00011176,2]
[419866473,1775448646264,-600.0,0.00011399,2]
[419866474,1775448646272,-420.0,0.00011459,2]
[419866475,1775448646282,-694.0,0.00011464,2]
[419866476,1775448646291,-720.0,0.00012538,2]
[419866477,1775448646300,-2653.71684122,0.00013,2]
[419866478,1775448646309,-1000.0,0.00013699,2]
[419866479,1775448646319,-864.0,0.00013792,2]
[419866480,1775448646328,-1118.63211065,0.00014175,2]
[419866481,1775448646337,-1000.0,0.00015171,2]
[419866482,1775448646347,-1000.0,0.00016689,2]
[419866483,1775448646356,-244.0,0.00016689,2]
[419866484,1775448646365,-1000.0,0.00018357,2]
[419866485,1775448646374,-492.0,0.00018357,2]
[419866486,1775448646383,-1000.0,0.00018984,2]
[419866487,1775448646392,-159.8451453,0.00019537,2]
[419866488,1775448646401,-5295.7593911,0.00019874,2]
[419866489,1775448646410,-178.086669,0.00019874,2]
[419866490,1775448646419,-1000.0,0.00020193,2]
[419866491,1775448646428,-791.0,0.00020193,2]
[419866492,1775448646437,-297.624653,0.00020201,2]
[419866493,1775448646445,-3000.0,0.00021,2]
[419866494,1775448646455,-501.62874248,0.00021004,2]
[419866495,1775448646464,-500.0,0.00021004,2]
[419866496,1775448646472,-3000.0,0.0002101,2]
[419866497,1775448646481,-500.0,0.00021017,2]
[419866498,1775448646490,-3000.0,0.0002102,2]
[419866499,1775448646499,-3000.0,0.0002103,2]
[419866500,1775448646508,-3000.0,0.0002104,2]
[419866501,1775448646516,-151.0,0.0002104,2]
[419866502,1775448646525,-3000.0,0.0002105,2]
[419866503,1775448646534,-297.624653,0.00021051,2]
[419866504,1775448646543,-500.0,0.00021058,2]
[419866505,1775448646551,-500.0,0.00021058,2]
[419866506,1775448646560,-500.0,0.00021059,2]
[419866507,1775448646569,-500.0,0.00021059,2]
[419866508,1775448646578,-511.35930869,0.00021059,2]
[419866509,1775448646587,-500.0,0.00021059,2]
[419866510,1775448646596,-302.73262547,0.00021059,2]
[419866511,1775448646605,-500.0,0.00021059,2]
[419866512,1775448646614,-171.6185905,0.00021059,2]
[419866513,1775448646622,-3000.0,0.0002106,2]
[419866514,1775448646631,-3000.0,0.0002107,2]
[419866515,1775448646640,-3000.0,0.0002108,2]
[419866516,1775448646649,-3000.0,0.0002109,2]
[419866517,1775448646659,-3000.0,0.000211,2]
[419866518,1775448646668,-3000.0,0.0002111,2]
[419866519,1775448646677,-4681.828174,0.0002112,2]
[419866520,1775448646686,-756.90308099,0.00021552,2]
[419866521,1775448646695,-1000.0,0.00021565,2]
[419866522,1775448646704,-1000.0,0.00021606,2]
[419866523,1775448646714,-1000.0,0.00021606,2]
[419866524,1775448646723,-297.624653,0.00021902,2]
[419866525,1775448646732,-6420.87,0.00021908,10]
[419866526,1775448646741,-557.17341117,0.00021917,2]
[419866527,1775448646750,-500.0,0.00021917,2]
[419866528,1775448646759,-500.0,0.00021917,2]
[419866529,1775448646768,-500.0,0.00021917,2]
[419866530,1775448646777,-165.51396492,0.00021917,2]
[419866531,1775448646786,-500.0,0.00021917,2]
[419866532,1775448646795,-588.14164286,0.00021917,2]
[419866533,1775448646804,-500.0,0.00021917,2]
[419866534,1775448646813,-500.0,0.00021917,2]
[419866535,1775448646822,-500.0,0.00021917,2]
[419866536,1775448646831,-203.3244097,0.00021917,2]
[419866537,1775448646840,-160.32850929,0.00021917,2]
[419866538,1775448646849,-151.0,0.00021918,2]
[419866539,1775448646858,-151.0,0.00021918,2]
[419866540,1775448646867,-151.0,0.00021918,2]
[419866541,1775448646876,-151.0,0.00021918,2]
[419866542,1775448646885,-151.0,0.00021918,2]
[419866543,1775448646894,-151.0,0.00021918,2]
[419866544,1775448646903,-151.0,0.00021918,2]
[419866545,1775448646913,-151.0,0.00021918,2]
[419866546,1775448646922,-153.522083,0.00021918,2]
[419866547,1775448646931,-151.0,0.00021918,2]
[419866548,1775448646940,-151.0,0.00021918,2]
[419866549,1775448646949,-151.0,0.00021918,2]
[419866550,1775448646958,-257.40732,0.00021918,2]
[419866551,1775448646968,-151.0,0.00021918,2]
[419866552,1775448646978,-152.872505,0.00021918,2]
[419866553,1775448646987,-151.0,0.00021918,2]
[419866554,1775448646996,-153.241263,0.00021918,2]
[419866555,1775448647006,-152.267443,0.00021918,2]
[419866556,1775448647016,-151.0,0.00021918,2]
[419866557,1775448647025,-151.943263,0.00021918,2]
[419866558,1775448647034,-151.0,0.00021918,2]
[419866559,1775448647043,-151.0,0.00021918,2]
[419866560,1775448647052,-151.0,0.00021918,2]
[419866561,1775448647061,-151.0,0.00021918,2]
[419866562,1775448647071,-151.0,0.00021918,2]
[419866563,1775448647079,-151.0,0.00021918,2]
[419866564,1775448647088,-151.0,0.00021918,2]
[419866565,1775448647098,-370.603437,0.00021918,2]
[419866566,1775448647107,-370.603437,0.00021918,2]
[419866567,1775448647117,-370.603437,0.00021918,2]
[419866568,1775448647126,-370.603437,0.00021918,2]
[419866569,1775448647135,-370.603437,0.00021918,2]
[419866570,1775448647144,-370.603437,0.00021918,2]
[419866571,1775448647153,-370.603437,0.00021918,2]
[419866572,1775448647162,-370.603437,0.00021918,2]
[419866573,1775448647172,-370.603437,0.00021918,2]
[419866574,1775448647181,-370.603437,0.00021918,2]
[419866575,1775448647190,-370.603437,0.00021918,2]
[419866576,1775448647199,-370.603437,0.00021918,2]
[419866577,1775448647208,-370.603437,0.00021918,2]
[419866578,1775448647218,-370.603437,0.00021918,2]
[419866579,1775448647227,-370.603437,0.00021918,2]
[419866580,1775448647236,-370.603437,0.00021918,2]
[419866581,1775448647245,-370.603437,0.00021918,2]
[419866582,1775448647254,-370.603437,0.00021918,2]
[419866583,1775448647263,-370.603437,0.00021918,2]
[419866584,1775448647272,-370.6034414,0.00021918,2]
[419866585,1775448647281,-151.0,0.00021918,2]
[419866586,1775448647291,-151.0,0.00021918,2]
[419866587,1775448647300,-151.0,0.00021918,2]
[419866588,1775448647308,-151.0,0.00021918,2]
[419866589,1775448647318,-151.0,0.00021918,2]
[419866590,1775448647327,-151.830425,0.00021918,2]
[419866591,1775448647336,-151.830425,0.00021918,2]
[419866592,1775448647345,-151.830425,0.00021918,2]
[419866593,1775448647355,-151.830425,0.00021918,2]
[419866594,1775448647364,-151.830425,0.00021918,2]
[419866595,1775448647373,-151.830425,0.00021918,2]
[419866596,1775448647381,-151.830425,0.00021918,2]
[419866597,1775448647391,-151.830425,0.00021918,2]
[419866598,1775448647399,-151.830425,0.00021918,2]
[419866599,1775448647408,-151.830425,0.00021918,2]
[419866600,1775448647418,-151.830425,0.00021918,2]
[419866601,1775448647426,-151.830425,0.00021918,2]
[419866602,1775448647546,-151.830425,0.00021918,2]
[419866603,1775448647556,-151.830425,0.00021918,2]
[419866604,1775448647565,-151.830425,0.00021918,2]
[419866605,1775448647574,-151.830425,0.00021918,2]
[419866606,1775448647583,-151.830425,0.00021918,2]
[419866607,1775448647592,-151.830425,0.00021918,2]
[419866608,1775448647602,-151.830425,0.00021918,2]
[419866609,1775448647612,-151.830425,0.00021918,2]
[419866610,1775448647621,-151.0,0.00021918,2]
[419866611,1775448647630,-273.317882,0.00021918,2]
[419866612,1775448647639,-258.093756,0.00021918,2]
[419866613,1775448647648,-258.093756,0.00021918,2]
[419866614,1775448647656,-258.093756,0.00021918,2]
[419866615,1775448647665,-258.093756,0.00021918,2]
[419866616,1775448647674,-258.093756,0.00021918,2]
[419866617,1775448647683,-601.028282,0.00021918,2]
[419866618,1775448647692,-258.093756,0.00021918,2]
[419866619,1775448647701,-601.028282,0.00021918,2]
[419866620,1775448647710,-601.028282,0.00021918,2]
[419866621,1775448647719,-258.093756,0.00021918,2]
[419866622,1775448647728,-35.79031646,0.00021918,2]
[419866623,1775448647742,-565.23796554,0.00021918,2]
[419866624,1775448647751,-258.093756,0.00021918,2]
[419866625,1775448647761,-601.028282,0.00021918,2]
[419866626,1775448647770,-258.093756,0.00021918,2]
[419866627,1775448647779,-258.093756,0.00021918,2]
[419866628,1775448647788,-601.028282,0.00021918,2]
[419866629,1775448647797,-258.093756,0.00021918,2]
[419866630,1775448647805,-601.028282,0.00021918,2]
[419866631,1775448647814,-258.093756,0.00021918,2]
[419866632,1775448647824,-601.028282,0.00021918,2]
[419866633,1775448647832,-258.093756,0.00021918,2]
[419866634,1775448647841,-458.22741853,0.00021918,2]
[419866635,1775448647853,-142.80086347,0.00021918,2]
[419866636,1775448647862,-258.093756,0.00021918,2]
[419866637,1775448647871,-601.028282,0.00021918,2]
[419866638,1775448647880,-258.093756,0.00021918,2]
[419866639,1775448647889,-96.32578253,0.00021918,2]
[419866640,1775448910351,10000.0,0.00032877,120]
[419866641,1775448931752,10000.0,0.00032877,120]
[419866642,1775449049903,2370.5,0.00032877,120]
[419866643,1775449079425,500.0,0.0003287,120]
[419866660,1775449833146,-300.0,0.00011058,2]
[419866661,1775449833156,-1200.0,0.00011058,2]
[419866662,1775449833167,-300.0,0.00011059,2]
[419866663,1775449833177,-300.0,0.00011059,2]
[419866664,1775449833186,-300.0,0.00011059,2]
[419866665,1775449833195,-300.0,0.00011059,2]
[419866666,1775449833205,-300.0,0.00011059,2]
[419866667,1775449833215,-300.0,0.00011059,2]
[419866668,1775449833224,-300.0,0.00011059,2]
[419866669,1775449833234,-300.0,0.00011059,2]
[419866670,1775449833244,-300.0,0.00011059,2]
[419866671,1775449833254,-300.0,0.00011059,2]
[419866672,1775449833263,-300.0,0.00011059,2]
[419866673,1775449833273,-300.0,0.00011059,2]
[419866674,1775449833282,-300.0,0.00011059,2]
[419866675,1775449833292,-300.0,0.00011059,2]
[419866676,1775449833302,-222.73707428,0.00011059,2]